Workbook

Sheet Fall & Spring
A1: Florida Gulf Coast University Faculty Activity Report- FALL and SPRING
A2: Name | G2: Term | I2: Term | K2: Year
A3: Status | E3: Rank | F3: Rank | G3: College/School | I3: College
A4: University ID | E4: FTE | F4: FTE | G4: Department | I4: Department
A5: Instructional Course Activity
A6: CRS TITLE | B6: CRN | C6: CRS PREFIX | D6: CRS NUM | E6: Schedule Type Code | F6: Class Size | G6: Team Taught/ Cross listed/Mini-Session/ Comments | J6: Designated Contact Hours | K6: FTE % of effort | L6: Exclude from Primary Effort
H7: FALSE | I7: Overload | K7: =IF(L7=TRUE,"0",(J7*0.08333)) -> 0 | L7: FALSE
H8: FALSE | I8: Overload | K8: =IF(L8=TRUE,"0",(J8*0.08333)) -> 0 | L8: FALSE
H9: FALSE | I9: Overload | K9: 0 | L9: FALSE
H10: FALSE | I10: Overload | K10: 0 | L10: FALSE
H11: FALSE | I11: Overload | K11: 0 | L11: FALSE
H12: FALSE | I12: Overload | K12: 0 | L12: FALSE
H13: FALSE | I13: Overload | K13: =J13*0.08333 -> 0 | L13: FALSE
H14: FALSE | I14: Overload | K14: 0 | L14: FALSE
G15: Total Instructional Course Activity Contact Hours | J15: =SUM(J7:J14) -> 0 | K15: =SUM(K7:K14) -> 0
A16: Non Instructional - Related Activity
A17: Activity Category | B17: Comments (such as name of activity, grant ID, C-course modifier, scale-up, etc.) | J17: Designated Contact Hours Equivalency | K17: FTE % of effort | L17: Exclude from Primary Effort
A18: Select Activity Category | H18: FALSE | I18: Overload | K18: =IF(L18=TRUE,"0",(J18*0.08333)) -> 0 | L18: FALSE
A19: Select Activity Category | H19: FALSE | I19: Overload | K19: =IF(L19=TRUE,"0",(J19*0.08333)) -> 0 | L19: FALSE
A20: Select Activity Category | H20: FALSE | I20: Overload | K20: 0 | L20: FALSE
A21: Select Activity Category | H21: FALSE | I21: Overload | K21: 0 | L21: FALSE
A22: Select Activity Category | H22: FALSE | I22: Overload | K22: 0 | L22: FALSE
A23: Select Activity Category | H23: FALSE | I23: Overload | K23: 0 | L23: FALSE
A24: Select Activity Category | H24: FALSE | I24: Overload | K24: 0 | L24: FALSE
A25: Select Activity Category | H25: FALSE | I25: Overload | K25: 0 | L25: FALSE
A26: Select Activity Category | H26: FALSE | I26: Overload | K26: 0 | L26: FALSE
A27: Select Activity Category | H27: FALSE | I27: Overload | K27: 0 | L27: FALSE
A28: Select Activity Category | H28: FALSE | I28: Overload | K28: 0 | L28: FALSE
A29: Select Activity Category | H29: FALSE | I29: Overload | K29: 0 | L29: FALSE
G30: Total Non-Instructional Related Activity Contact Hour Equivalencies | J30: =SUM(J18:J29) -> 0 | K30: =SUM(K18:K29) -> 0
G31: Total of All Reported Term Activity | J31: =J30+J15 -> 0 | K31: =K30+K15 -> 0
A32: Forward digitally signed FAR to Academic Affairs within 2 weeks after the academic term has ended | I32: Must be at least 12 contact hours (100%) for 1.0 FTE, excluding overloads or activities compensated seperately from the primary position
A33: Faculty Signature
A34: Chair Signature
A35: Dean Signature

Sheet Summer
A1: Florida Gulf Coast University Faculty Activity Report- SUMMER
A2: Name | G2: Term | I2: Term | K2: Year
A3: Status | E3: Rank | F3: Rank | G3: College/School | I3: College
A4: University ID | E4: FTE | F4: FTE | G4: Department | I4: Department
A5: Instructional Course Activity
A6: CRS TITLE | B6: CRN | C6: CRS PREFIX | D6: CRS NUM | E6: Schedule Type Code | F6: Class Size | G6: Team Taught/ Cross listed/Mini-Session/ Comments | J6: Designated Contact Hours | K6: FTE % of effort | L6: Exclude from Primary Effort | M6: Please note that totals (percentages) for primary effort during summer term only apply to 12-month faculty.
H7: FALSE | I7: Overload | K7: =IF(L7=TRUE,"0",(J7*0.125)) -> 0 | L7: FALSE
H8: FALSE | I8: Overload | K8: =IF(L8=TRUE,"0",(J8*0.125)) -> 0 | L8: FALSE
H9: FALSE | I9: Overload | K9: 0 | L9: FALSE
H10: FALSE | I10: Overload | K10: 0 | L10: FALSE
H11: FALSE | I11: Overload | K11: 0 | L11: FALSE
H12: FALSE | I12: Overload | K12: 0 | L12: FALSE
H13: FALSE | I13: Overload | K13: 0 | L13: FALSE
H14: FALSE | I14: Overload | K14: 0 | L14: FALSE
G15: Total Instructional Course Activity Contact Hours | J15: =SUM(J7:J14) -> 0 | K15: =SUM(K7:K14) -> 0
A16: Non Instructional - Related Activity
A17: Activity Category | B17: Comments (such as name of activity, grant ID, C-course modifier, scale-up, etc.) | J17: Designated Contact Hours Equivalency | K17: FTE % of effort | L17: Exclude from Primary Effort
A18: Select Activity Category | H18: FALSE | I18: Overload | K18: =IF(L18=TRUE,"0",(J18*0.125)) -> 0 | L18: FALSE
A19: Select Activity Category | H19: FALSE | I19: Overload | K19: =IF(L19=TRUE,"0",(J19*0.125)) -> 0 | L19: FALSE
A20: Select Activity Category | H20: FALSE | I20: Overload | K20: 0 | L20: FALSE
A21: Select Activity Category | H21: FALSE | I21: Overload | K21: 0 | L21: FALSE
A22: Select Activity Category | H22: FALSE | I22: Overload | K22: 0 | L22: FALSE
A23: Select Activity Category | H23: FALSE | I23: Overload | K23: 0 | L23: FALSE
A24: Select Activity Category | H24: FALSE | I24: Overload | K24: 0 | L24: FALSE
A25: Select Activity Category | H25: FALSE | I25: Overload | K25: 0 | L25: FALSE
A26: Select Activity Category | H26: FALSE | I26: Overload | K26: 0 | L26: FALSE
A27: Select Activity Category | H27: FALSE | I27: Overload | K27: 0 | L27: FALSE
A28: Select Activity Category | H28: FALSE | I28: Overload | K28: 0 | L28: FALSE
A29: Select Activity Category | H29: FALSE | I29: Overload | K29: 0 | L29: FALSE
G30: Total Non-Instructional Related Activity Contact Hour Equivalencies | J30: =SUM(J18:J29) -> 0 | K30: =SUM(K18:K29) -> 0 | L30: Note… while the total effort should be 8 hours, a load of at least 4 hours during sessions A or B can also garner an overload if exceeded, so a 5th hour in A could justify a 1 hr overload.
G31: Total of All Reported Term Activity | J31: =J30+J15 -> 0 | K31: =K30+K15 -> 0
A32: Forward digitally signed FAR to Academic Affairs within 2 weeks after the academic term has ended | I32: Must be at least 8 contact hours (100%) for 12-month faculty, excluding overloads or activities compensated separately from the primary position
A33: Faculty Signature
A34: Chair Signature
A35: Dean Signature

Sheet Drop-Down References (hidden)
A1: Term | B1: Year | C1: College | D1: Department | E1: FTE | F1: (16) Supervision of Cooperative Education
A2: Summer | B2: 2023 | C2: College of Arts and Sciences | D2: Biological Sciences | E2: 0.25 | F2: (21) Secondary Travel
A3: Fall | B3: 2024 | C3: Lutgert College of Business | D3: Bower School of Music and the Arts | E3: 0.5 | F3: (22) Department Research
A4: Spring | B4: 2025 | C4: Marieb Health and Human Services | D4: Chemistry and Physics | E4: 0.75 | F4: (22r)Sponsored Research
B5: 2026 | C5: U.A. Whitaker College of Engineering | D5: Communication and Philosophy | E5: 1 | F5: (25) Other Instructional Effort-Non-Credit
B6: 2027 | C6: College of Education | D6: Integrated Studies | F6: (32) Public Service
B7: 2028 | C7: The Honors College | D7: Justice Studies | F7: (35) State Mandated Service (K-12 Schools)
B8: 2029 | C8: School | D8: Language and Literature | F8: (40) Academic Advising
B9: 2030 | C9: Bower School of Music and the Arts | D9: Mathematics | F9: (46) Academic Administration
C10: Daveler & Kauanui School of Entrepreneurship | D10: Poli-Sci and Public Admin | F10: (47) University Governance
C11: School of Nursing | D11: Psychology | F11: (89) Leave of Absence w/Pay
C12: School of Resort and Hospitality Management | D12: Health Sciences | F12: (90) Release time
C13: The Water School | D13: Counseling | F13: Select Activity Category
D14: Rehab Sciences | E14: Rank | F14: (16) Supervision of Cooperative Education
D15: Social Work | E15: 01 Professor | F15: (21) Secondary Travel
D16: Accounting | E16: 02 Associate Professor | F16: (22) Department Research
D17: Agribusiness | E17: 03 Assistant Professor | F17: (22r)Sponsored Research
D18: Economics & Finaince | E18: 04 Instructor | F18: (25) Other Instructional Effort-Non-Credit
D19: Information Systems, Analytics, and Supply Chain | E19: 99 No Rank Assigned | F19: (32) Public Service
D20: Management | F20: (35) State Mandated Service (K-12 Schools)
D21: Marketing | F21: (40) Academic Advising
D22: PGA Golf Management | F22: (46) Academic Administration
D23: Bio-, Civil-, and Environmental Engineering | F23: (47) University Governance
D24: Computing and Software Engineering | F24: (89) Leave of Absence w/Pay
D25: Construction Management | F25: (90) Release time
D26: Music
D27: Art
D28: Theatre
D29: Digital Media Design
D30: Ecology and Environmental Studies
D31: Marine and Earth Sciences
D32: Other

Sheet Proposed Fall & Spring (hidden)
A1: Florida Gulf Coast University Faculty Activity Report- FALL and SPRING
A2: Name | G2: Term | I2: Term | K2: Year
A3: Status | E3: Rank | F3: Rank | G3: College/School | I3: College
A4: University ID | E4: FTE | F4: FTE | G4: Department | I4: Department
A5: Instructional Course Activity
A6: CRS TITLE | B6: CRN | C6: CRS PREFIX | D6: CRS NUM | E6: Schedule Type Code | F6: Class Size | G6: Team Taught/ Cross listed/Mini-Session/ Comments | J6: Designated Contact Hours | K6: FTE % of effort
H7: FALSE | I7: Overload | K7: =J7*0.08333 -> 0
H8: FALSE | I8: Overload | K8: =J8*0.08333 -> 0
H9: FALSE | I9: Overload | K9: 0
H10: FALSE | I10: Overload | K10: 0
H11: FALSE | I11: Overload | K11: 0
H12: FALSE | I12: Overload | K12: 0
H13: FALSE | I13: Overload | K13: =J13*0.08333 -> 0
H14: FALSE | I14: Overload | K14: 0
G15: Total Instructional Course Activity Contact Hours | J15: =SUM(J7:J14) -> 0 | K15: =SUM(K7:K14) -> 0
A16: Non Instructional - Related Activity
A17: Activity Category | B17: Comments (such as name of activity, grant ID, C-course modifier, scale-up, etc.) | J17: Designated Contact Hours Equivalency | K17: FTE % of effort
A18: (16) Supervision of Cooperative Education | H18: FALSE | I18: Overload | K18: =J18*0.08333 -> 0
A19: (21) Secondary Travel | H19: FALSE | I19: Overload | K19: =J19*0.08333 -> 0
A20: (22) Department Research | H20: FALSE | I20: Overload | K20: 0
A21: (22r)Sponsored Research | B21: Grant ID(s): | H21: FALSE | I21: Overload | K21: 0
A22: (25) Other Instructional Effort-Non-Credit | H22: FALSE | I22: Overload | K22: 0
A23: (32) Public Service | H23: FALSE | I23: Overload | K23: 0
A24: (35) State Mandated Service (K-12 Schools) | H24: FALSE | I24: Overload | K24: 0
A25: (40) Academic Advising | H25: FALSE | I25: Overload | K25: 0
A26: (46) Academic Administration | H26: FALSE | I26: Overload | K26: 0
A27: (47) University Governance | H27: FALSE | I27: Overload | K27: 0
A28: (89) Leave of Absence w/Pay | H28: FALSE | I28: Overload | K28: 0
A29: (90) Release time | H29: FALSE | I29: Overload | K29: =J29*0.08333 -> 0
G30: Total Non-Instructional Related Activity Contact Hour Equivalencies | J30: =SUM(J18:J29) -> 0 | K30: =SUM(K18:K29) -> 0
G31: Total of All Reported Term Activity | J31: =J30+J15 -> 0 | K31: =K30+K15 -> 0
A32: Forward digitally signed FAR to Academic Affairs within 2 weeks after the academic term has ended | I32: Must be at least 12 contact hours (100%) for 1.0 FTE, excluding overloads or activities compensated seperately from the primary position
A33: Faculty Signature
A34: Chair Signature
A35: Dean Signature

Sheet Proposed Summer (hidden)
A1: Florida Gulf Coast University Faculty Activity Report- SUMMER TERM
A2: Name | G2: Term | I2: Summer | K2: Year
A3: Status | E3: Rank | F3: Rank | G3: College/School | I3: College
A4: University ID | E4: FTE | F4: FTE | G4: Department | I4: Department
A5: Instructional Course Activity
A6: CRS TITLE | B6: CRN | C6: CRS PREFIX | D6: CRS NUM | E6: Schedule Type Code | F6: Class Size | G6: Team Taught/ Cross listed/Mini-Session/ Comments | J6: Designated Contact Hours | K6: FTE % of effort
H7: FALSE | I7: Overload | K7: =J7*0.08333 -> 0
H8: FALSE | I8: Overload | K8: =J8*0.08333 -> 0
H9: FALSE | I9: Overload | K9: 0
H10: FALSE | I10: Overload | K10: 0
H11: FALSE | I11: Overload | K11: 0
H12: FALSE | I12: Overload | K12: 0
H13: FALSE | I13: Overload | K13: 0
H14: FALSE | I14: Overload | K14: 0
G15: Total Instructional Course Activity Contact Hours | J15: =SUM(J7:J14) -> 0 | K15: =SUM(K7:K14) -> 0
A16: Non Instructional - Related Activity
A17: Activity Category | B17: Comments (such as name of activity, grant ID, C-course modifier, scale-up, etc.) | J17: Designated Contact Hours Equivalency | K17: FTE % of effort
A18: (16) Supervision of Cooperative Education | H18: FALSE | I18: Overload | K18: =J18*0.08333 -> 0
A19: (21) Secondary Travel | H19: FALSE | I19: Overload | K19: =J19*0.08333 -> 0
A20: (22) Department Research | H20: FALSE | I20: Overload | K20: 0
A21: (22r)Sponsored Research | B21: Grant ID(s): | H21: FALSE | I21: Overload | K21: 0
A22: (25) Other Instructional Effort-Non-Credit | H22: FALSE | I22: Overload | K22: 0
A23: (32) Public Service | H23: FALSE | I23: Overload | K23: 0
A24: (35) State Mandated Service (K-12 Schools) | H24: FALSE | I24: Overload | K24: 0
A25: (40) Academic Advising | H25: FALSE | I25: Overload | K25: 0
A26: (46) Academic Administration | H26: FALSE | I26: Overload | K26: 0
A27: (47) University Governance | H27: FALSE | I27: Overload | K27: 0
A28: (89) Leave of Absence w/Pay | H28: FALSE | I28: Overload | K28: 0
A29: (90) Release time | H29: FALSE | I29: Overload | K29: =J29*0.08333 -> 0
G30: Total Non-Instructional Related Activity Contact Hour Equivalencies | J30: =SUM(J18:J29) -> 0 | K30: =SUM(K18:K29) -> 0
G31: Total of All Reported Term Activity | J31: =J30+J15 -> 0 | K31: =K30+K15 -> 0
A32: Forward digitally signed FAR to Academic Affairs within 2 weeks after the academic term has ended | I32: Must be at least 8 contact hours (100%) for 12-month faculty, excluding overloads or activities compensated seperately from the primary position
A33: Faculty Signature
A34: Chair Signature
A35: Dean Signature

Sheet Simple Example (hidden)
A1: Florida Gulf Coast University Faculty Activity Report
A2: Name | B2: John Doe | G2: Term
A3: Status | E3: Rank | G3: College/School
A4: University ID | B4: 815 123 456 | E4: FTE | G4: Department
A5: Instructional Course Activity
A6: CRS TITLE | B6: CRN | C6: CRS PREFIX | D6: CRS NUM | E6: Schedule Type Code | F6: Class Size | G6: Team Taught/ Cross listed/Mini-Session/ Comments | I6: Designated Contact Hours | J6: FTE % of effort
A7: Drawing 1 | B7: 85469 | C7: ART | D7: 1011 | E7: C | F7: 47 | I7: 3 | J7: =I7*0.08333 -> 0.24999
A8: Advanced Mixed Media | B8: 85632 | C8: ART | D8: 4575 | E8: C | F8: 20 | I8: 3 | J8: =I8*0.08333 -> 0.24999
A9: Portfolio Management | B9: 85296 | C9: ART | D9: 3550 | E9: C | F9: 38 | I9: 3 | J9: 0.24999
J10: 0
J11: 0
J12: 0
J13: 0
J14: 0
G15: Total Instructional Course Activity Contact Hours | I15: =SUM(I7:I14) -> 9 | J15: =SUM(J7:J14) -> 0.74997
A16: Non Instructional - Related Activity
A17: Activity Category | B17: Comments (such as name of activity, grant ID, C-course modifier, scale-up, etc.) | I17: Designated Contact Hours Equivalency | J17: FTE % of effort
A18: (16) Supervision of Cooperative Education | J18: =I18*0.08333 -> 0
A19: (21) Secondary Travel | J19: =I19*0.08333 -> 0
A20: (22) Department Research | J20: 0
A21: (22r)Sponsored Research | B21: Grant ID(s): | J21: 0
A22: (25) Other Instructional Effort-Non-Credit | B22: Oversaw "ART Display Days" exhibit | I22: 1.5 | J22: 0.124995
A23: (32) Public Service | B23: Taught Immokalee art camp x 6 weeks | I23: 1.5 | J23: 0.124995
A24: (35) State Mandated Service (K-12 Schools) | J24: 0
A25: (40) Academic Advising | J25: 0
A26: (46) Academic Administration | J26: 0
A27: (47) University Governance | J27: 0
A28: (89) Leave of Absence w/Pay | J28: 0
A29: (90) Release time | J29: =I29*0.08333 -> 0
G30: Total Non-Instructional Related Activity Contact Hour Equivalencies | I30: =SUM(I18:I29) -> 3 | J30: =SUM(J18:J29) -> 0.24999
G31: Total of All Reported Term Activity | I31: =I30+I15 -> 12 | J31: =J30+J15 -> 0.99996
A32: Forward digitally signed FAR to Academic Affairs within 2 weeks after the academic term has ended | H32: Must be at least 12 contact hours (100%) for 1.0 FTE, excluding overloads or activities compensated seperately from the primary position
A33: Faculty Signature
A34: Chair Signature
A35: Dean Signature

Sheet Med Example (hidden)
A1: Florida Gulf Coast University Faculty Activity Report
A2: Name | B2: John Doe | G2: Term
A3: Status | E3: Rank | G3: College/School
A4: University ID | B4: 815 123 456 | E4: FTE | G4: Department
A5: Instructional Course Activity
A6: CRS TITLE | B6: CRN | C6: CRS PREFIX | D6: CRS NUM | E6: Schedule Type Code | F6: Class Size | G6: Team Taught/ Cross listed/Mini-Session/ Comments | I6: Designated Contact Hours | J6: FTE % of effort
A7: Drawing 1 | B7: 85469 | C7: ART | D7: 1011 | E7: C | F7: 47 | G7: TT 50% | I7: 1.5 | J7: =I7*0.08333 -> 0.124995
A8: Advanced Mixed Media | B8: 85632 | C8: ART | D8: 4575 | E8: C | F8: 20 | G8: CL with 85633 | I8: 1.5 | J8: =I8*0.08333 -> 0.124995
A9: Portfolio Management | B9: 85296 | C9: ART | D9: 3550 | E9: C | F9: 38 | I9: 3 | J9: 0.24999
A10: Advanced Mixed Media | B10: 85633 | C10: ART | D10: 4575 | E10: C | F10: 14 | G10: CL with 85632 | I10: 1.5 | J10: 0.124995
A11: Senior Portfolio | B11: 84471 | C11: ART | D11: 5148 | F11: 6 | I11: 1 | J11: 0.08333
J12: 0
J13: 0
J14: 0
G15: Total Instructional Course Activity Contact Hours | I15: =SUM(I7:I14) -> 8.5 | J15: =SUM(J7:J14) -> 0.708305
A16: Non Instructional - Related Activity
A17: Activity Category | B17: Comments (such as name of activity, grant ID, C-course modifier, scale-up, etc.) | I17: Designated Contact Hours Equivalency | J17: FTE % of effort
A18: (16) Supervision of Cooperative Education | J18: =I18*0.08333 -> 0
A19: (21) Secondary Travel | J19: =I19*0.08333 -> 0
A20: (22) Department Research | J20: 0
A21: (22r)Sponsored Research | B21: Grant ID(s): | J21: 0
A22: (25) Other Instructional Effort-Non-Credit | B22: Oversaw "ART Display Days" exhibit | I22: 1.5 | J22: 0.124995
A23: (32) Public Service | B23: Taught Immokalee art camp x 6 weeks | I23: 1.5 | J23: 0.124995
A24: (35) State Mandated Service (K-12 Schools) | J24: 0
A25: (40) Academic Advising | J25: 0
A26: (46) Academic Administration | J26: 0
A27: (47) University Governance | J27: 0
A28: (89) Leave of Absence w/Pay | J28: 0
A29: (90) Release time | J29: =I29*0.08333 -> 0
G30: Total Non-Instructional Related Activity Contact Hour Equivalencies | I30: =SUM(I18:I29) -> 3 | J30: =SUM(J18:J29) -> 0.24999
G31: Total of All Reported Term Activity | I31: =I30+I15 -> 11.5 | J31: =J30+J15 -> 0.958295
A32: Forward digitally signed FAR to Academic Affairs within 2 weeks after the academic term has ended | H32: Must be at least 12 contact hours (100%) for 1.0 FTE, excluding overloads or activities compensated seperately from the primary position
A33: Faculty Signature
A34: Chair Signature
A35: Dean Signature

Sheet Complex Example (hidden)
A1: Florida Gulf Coast University Faculty Activity Report
A2: Name | B2: John Doe | G2: Term
A3: Status | E3: Rank | G3: College/School
A4: University ID | B4: 815 123 456 | E4: FTE | G4: Department
A5: Instructional Course Activity
A6: CRS TITLE | B6: CRN | C6: CRS PREFIX | D6: CRS NUM | E6: Schedule Type Code | F6: Class Size | G6: Team Taught/ Cross listed/Mini-Session/ Comments | I6: Designated Contact Hours | J6: FTE % of effort
A7: Drawing 1 | B7: 85469 | C7: ART | D7: 1011 | E7: C | F7: 47 | G7: TT 50% | I7: 1.5 | J7: =I7*0.08333 -> 0.124995
A8: Advanced Mixed Media | B8: 85632 | C8: ART | D8: 4575 | E8: C | F8: 20 | G8: CL with 85633 | I8: 1.5 | J8: =I8*0.08333 -> 0.124995
A9: Portfolio Management | B9: 85296 | C9: ART | D9: 3550 | E9: C | F9: 38 | I9: 3 | J9: 0.24999
A10: Advanced Mixed Media | B10: 85633 | C10: ART | D10: 4575 | E10: C | F10: 14 | G10: CL with 85632 | I10: 1.5 | J10: 0.124995
A11: Senior Portfolio | B11: 84471 | C11: ART | D11: 5148 | F11: 6 | G11: 3 cr incl 1 hr ovl | I11: 2 | J11: 0.16666
J12: 0
J13: 0
J14: 0
G15: Total Instructional Course Activity Contact Hours | I15: =SUM(I7:I14) -> 9.5 | J15: =SUM(J7:J14) -> 0.791635
A16: Non Instructional - Related Activity
A17: Activity Category | B17: Comments (such as name of activity, grant ID, C-course modifier, scale-up, etc.) | I17: Designated Contact Hours Equivalency | J17: FTE % of effort
A18: (16) Supervision of Cooperative Education | J18: =I18*0.08333 -> 0
A19: (21) Secondary Travel | J19: =I19*0.08333 -> 0
A20: (22) Department Research | J20: 0
A21: (22r)Sponsored Research | B21: Grant ID(s): | J21: 0
A22: (25) Other Instructional Effort-Non-Credit | B22: Oversaw "ART Display Days" 2024 exhibit; OVL for CRN 84471( 1 cr) | I22: 2.5 | J22: 0.208325
A23: (32) Public Service | B23: Taught Immokalee fall art camp x 6 weeks | I23: 1.5 | J23: 0.124995
A24: (35) State Mandated Service (K-12 Schools) | J24: 0
A25: (40) Academic Advising | J25: 0
A26: (46) Academic Administration | J26: 0
A27: (47) University Governance | J27: 0
A28: (89) Leave of Absence w/Pay | J28: 0
A29: (90) Release time | J29: =I29*0.08333 -> 0
G30: Total Non-Instructional Related Activity Contact Hour Equivalencies | I30: =SUM(I18:I29) -> 4 | J30: =SUM(J18:J29) -> 0.33332
G31: Total of All Reported Term Activity | I31: =I30+I15 -> 13.5 | J31: =J30+J15 -> 1.124955
A32: Forward digitally signed FAR to Academic Affairs within 2 weeks after the academic term has ended | H32: Must be at least 12 contact hours (100%) for 1.0 FTE, excluding overloads or activities compensated seperately from the primary position
A33: Faculty Signature
A34: Chair Signature
A35: Dean Signature
